Cogmind - Beta 13 @@@ ROGUE MODE // 2024.04.18 @ 18:49:48 Player: Ashlemon Result: Destroyed by G-47 Trooper with Particle Gun Performance ------------- Evolutions (1) 500 Regions Visited (3) 600 Robots Destroyed (8) 40 Value Destroyed (180) 180 Prototype IDs (1) 20 Alien Tech Used (0) 0 Bonus (0) 0 TOTAL SCORE: 1340 Bonus ------- None Cogmind --------- Core Integrity 0/400 Matter 195/300 Energy 265/280 System Corruption 0% Temperature Cool (25) Movement Walking (190) Ox1 Location -9/Mines Parts ------- > --- POWER (1) -------- Heavy Ion Engine > --- PROPULSION (4) --- Improved Carbon-fiber Leg > --- UTILITY (2) ------ Terrain Scanner > --- WEAPON (2) ------- Heavy Ion Cannon Great Axe > --- INVENTORY (5) ---- Large Battery (200) Sensor Array Signal Interpreter Arc Projector Peak State ------------ > --- POWER ------------ Heavy Ion Engine > --- PROPULSION ------- Improved Carbon-fiber Leg > --- UTILITY ---------- Improved Salvage Targeting Computer Shock Absorption System > --- WEAPON ----------- Arc Projector Heavy Ion Cannon > --- INVENTORY -------- Large Battery Sensor Array Signal Interpreter Terrain Scanner [Rating: 23] Favorites ----------- Power Ion Engine Engine Ion Engine Propulsion Compact Wheel Leg Improved Carbon-fiber Leg Wheel Compact Wheel Hover Unit Hover Unit Flight Unit Flight Unit Utility Small Storage Unit Device Terrain Scanner Storage Small Storage Unit Processor Improved Salvage Targeting Computer Weapon Medium Laser Energy Gun Medium Laser Energy Cannon Heavy Ion Cannon Ballistic Gun Shotgun Slashing Weapon Mining Claw Build | -11 -10 -9 -9 ------- Run | Yrd Mat Mat Min Slots Evolved 2 | . . 2 . Power . | . . . . Propulsion 2 | . . 2 . Utility . | . . . . Weapon . | . . . . Parts Attached 36 | 6 4 17 9 Power 6 | 1 2 2 1 Engine 6 | 1 2 2 1 Core . | . . . . Reactor . | . . . . Propulsion 10 | 2 . 7 1 Treads . | . . . . Leg 1 | . . . 1 Wheel 2 | 2 . . . Hover 4 | . . 4 . Flight 3 | . . 3 . Utility 9 | 1 1 4 3 Device 7 | . 1 4 2 Storage 1 | 1 . . . Processor 1 | . . . 1 Hackware . | . . . . Protection . | . . . . Artifact . | . . . . Weapon 11 | 2 1 4 4 Energy Gun 4 | 2 1 . 1 Energy Cannon 2 | . . . 2 Ballistic Gun 3 | . . 3 . Ballistic Cannon . | . . . . Launcher . | . . . . Special Weapon . | . . . . Impact Weapon . | . . . . Slashing Weapon 2 | . . 1 1 Piercing Weapon . | . . . . Special Melee Weapon . | . . . . Unidentified Prototypes 1 | . . 1 . Parts Lost 13 | . 1 11 1 Power 3 | . 1 2 . Propulsion 6 | . . 6 . Utility 3 | . . 2 1 Weapon 1 | . . 1 . Highest Loss Streak 10 | . 1 10 1 To Critical Strikes . | . . . . Average Slot Usage (%) 78 | . 91 73 42 Engine 11 | . 13 10 11 Wheel 12 | . 28 . . Hover 9 | . . 20 . Flight 3 | . . 6 . Device 13 | . 7 19 11 Storage 6 | . 14 . . Energy Gun 13 | . 28 2 2 Ballistic Gun 2 | . . 5 . Slashing Weapon 3 | . . 7 5 Naked Turns 8 | . . 8 . Heaviest Build 23 | 12 15 15 23 Greatest Support 32 | 32 32 18 18 Greatest Overweight (x) 2 | 1 . 2 2 Average Overweight (x) . | . . . 1 Largest Inventory Capacity 8 | 8 8 8 5 Average Capacity 6 | 6 8 5 5 Most Carried 8 | 2 8 8 5 Average Carried 4 | 1 5 4 4 Final Capacity 8 | 8 8 5 5 Final Carried 8 | 2 8 5 4 Class Distribution -------------------- 85% | Mutant 14% | Infiltrator-Mutant Dominant Class ---------------- Mutant | -10/Materials Mutant | -9/Materials Mutant | -9/Mines Resources | -11 -10 -9 -9 ----------- Run | Yrd Mat Mat Min Matter Collected 383 | 192 103 88 . Remotely . | . . . . Salvage Created 284 | . 206 78 . Parts 23 | . 14 9 . Haulers Intercepted 1 | . . 1 . Recyclers Shooed . | . . . . Parts Field Recycled . | . . . . Retrieved Matter . | . . . . Parts Self-Destructed . | . . . . Prevented . | . . . . Kills | -11 -10 -9 -9 ------- Run | Yrd Mat Mat Min Combat Hostiles Destroyed 5 | . 4 1 . Melee 1 | . . 1 . Guns 2 | . 2 . . Classes Destroyed 4 | . 2 2 . Hauler 1 | . . 1 . Watcher 2 | . 2 . . Swarmer 1 | . . 1 . Grunt 4 | . 4 . . Best Kill Streak 3 | . 3 1 . Combat Bots Only 2 | . 2 1 . Max Kills in Single Turn 1 | . 1 1 . Gunslinging . | . . . . Exploded . | . . . . Melee 1 | . . 1 . Uniques/NPCs Destroyed . | . . . . Combat | -11 -10 -9 -9 -------- Run | Yrd Mat Mat Min Hostile Shots Fired 155 | . 23 118 14 Missed 55 | . 7 46 2 Damage Taken 1064 | . 175 744 145 Core 458 | . 46 359 53 Absorbed by Shields . | . . . . Core Remaining (%) 90 | 100 81 . . Volleys Fired 18 | . 17 . 1 Largest 2 | . 2 . 1 Hottest 100 | . 100 . 65 Shots Fired 35 | . 34 . 1 Gun 34 | . 34 . . Cannon 1 | . . . 1 Launcher . | . . . . Special . | . . . . Kinetic . | . . . . Thermal 35 | . 34 . 1 Explosive . | . . . . Electromagnetic . | . . . . Robot Hit Streak 8 | . 8 . . Robot Miss Streak 1 | . 1 . 1 Penetration Max . | . . . . Secondary Targets . | . . . . Shots Hit Robots 29 | . 24 2 3 Core Hits 10 | . 7 3 . Critical Kills . | . . . . Critical Parts Destroyed . | . . . . Critical Strikes 2 | . 1 . 1 Burn 1 | . 1 . . Sever 1 | . . . 1 Melee Attacks 18 | . . 15 3 Impact . | . . . . Slashing 18 | . . 15 3 Piercing . | . . . . Sneak Attacks 2 | . . 2 . Combat Hostiles . | . . . . Follow-up Attacks . | . . . . Damage Inflicted 488 | . 295 61 132 Guns 295 | . 295 . . Cannons . | . . . . Explosions . | . . . . Melee 182 | . . 50 132 Ramming 11 | . . 11 . Kinetic . | . . . . Thermal 295 | . 295 . . Explosive . | . . . . Electromagnetic . | . . . . Impact . | . . . . Slashing 182 | . . 50 132 Piercing . | . . . . Highest Corruption . | . . . . Average Corruption . | . . . . Corruption Purged . | . . . . Corruption Blocked . | . . . . Overload Shots . | . . . . Overflow Damage . | . . . . Projectiles . | . . . . Explosions . | . . . . Melee . | . . . . Knockbacks . | . . . . Impact . | . . . . Kinetic . | . . . . Secondary . | . . . . Self-Inflicted Damage 5 | . . 5 . Shots . | . . . . Rammed 3 | . . 3 . Targets Rammed 3 | . . 3 . Kicked . | . . . . Crushed . | . . . . Highest Temperature 333 | . 333 . 16 Average Temperature 114 | . 115 . 16 Received Heat Transfer 360 | . 84 192 84 Siege Activations . | . . . . Robots Corrupted . | . . . . Combat Hostiles . | . . . . Parts Fried . | . . . . Impact Corruptions . | . . . . Robots Melted 2 | . 2 . . Combat Hostiles 2 | . 2 . . Parts Melted 4 | . 4 . . Heat Transferred 962 | . 962 . . Parts Sabotaged . | . . . . Parts Stolen . | . . . . Parts Stripped . | . . . . Power Chain Reactions . | . . . . Alert | -11 -10 -9 -9 ------- Run | Yrd Mat Mat Min Peak Influence 145 | . 145 107 11 Initial 61 | . . 61 11 Average 59 | . 68 67 9 Maximum Alert Level . | . . . . Low Security (%) 100 | 100 100 100 100 Level 1 . | . . . . Level 2 . | . . . . Level 3 . | . . . . Level 4 . | . . . . Level 5 . | . . . . High Security . | . . . . Max Security . | . . . . Squads Dispatched 4 | . 1 2 1 Investigation 1 | . . . 1 Extermination . | . . . . Reinforcement 3 | . 1 2 . Assault . | . . . . Garrison . | . . . . Intercept . | . . . . Searches Triggered . | . . . . Construction Impeded . | . . . . Haulers Reinforced . | . . . . Active Scanning Responses . | . . . . Cargo Convoy Interrupts . | . . . . Stealth | -11 -10 -9 -9 --------- Run | Yrd Mat Mat Min Distress Signals 5 | . 3 2 . Communications Jammed . | . . . . Distress Signals . | . . . . Times Spotted 46 | . 15 28 3 Peak Tracking Total 13 | . 4 13 3 Tactical Retreats 4 | . . 4 . Traps | -11 -10 -9 -9 ------- Run | Yrd Mat Mat Min Traps Triggered 1 | . 1 . . Indirectly . | . . . . Trap Hack Attempts . | . . . . Triggered . | . . . . Disarmed . | . . . . Reprogrammed . | . . . . Reused . | . . . . Traps Extracted . | . . . . Installed . | . . . . Triggered . | . . . . Machines | -11 -10 -9 -9 ---------- Run | Yrd Mat Mat Min Machines Disabled . | . . . . Max in Single Turn . | . . . . Machines Repaired . | . . . . Machines Dismantled . | . . . . Machines Sabotaged . | . . . . Overloaded Fab Kills . | . . . . Hacking | -11 -10 -9 -9 --------- Run | Yrd Mat Mat Min Machines Accessed 5 | . 2 2 1 Terminals 4 | . 2 2 . Fabricators . | . . . . Repair Stations . | . . . . Recycling Units . | . . . . Scanalyzers . | . . . . Garrison Access . | . . . . Total Hacks 7 | . 4 2 1 Successful 4 | . 2 1 1 Failed 3 | . 2 1 . Catastrophic 1 | . . 1 . Database Lockouts . | . . . . Manual . | . . . . Terminals 6 | . 4 2 . Fabricators . | . . . . Repair Stations . | . . . . Recycling Units . | . . . . Scanalyzers . | . . . . Garrison Access . | . . . . Terminal Hacks 4 | . 2 1 1 Open Door 1 | . . . 1 Locate Traps 2 | . 1 1 . Hauler Manifests 1 | . 1 . . Fabricator Hacks . | . . . . Repair Station Hacks . | . . . . Recycling Unit Hacks . | . . . . Scanalyzer . | . . . . Garrison Access Hacks . | . . . . Unauthorized Hacks . | . . . . Terminals . | . . . . Fabricators . | . . . . Repair Stations . | . . . . Recycling Units . | . . . . Scanalyzers . | . . . . Garrison Access . | . . . . Data Cores Recovered . | . . . . Used . | . . . . Hacking Detections 2 | . . 2 . Full Trace Events . | . . . . Feedback Events . | . . . . Feedback Blocked . | . . . . Robot Schematics Acquired . | . . . . Robots Built . | . . . . Authchips . | . . . . Time . | . . . . Total Robot Build Rating . | . . . . Part Schematics Acquired . | . . . . Parts Built . | . . . . Authchips . | . . . . Time . | . . . . Total Part Build Rating . | . . . . Parts Repaired . | . . . . Time . | . . . . Parts Recycled . | . . . . Recycled Matter . | . . . . Retrieved Matter . | . . . . Retrieved Components . | . . . . Parts Scanalyzed . | . . . . Part Schematics Acquired . | . . . . Parts Damaged . | . . . . Bothacking | -11 -10 -9 -9 ------------ Run | Yrd Mat Mat Min Used RIF Installer . | . . . . Robots Hacked . | . . . . Non-combat . | . . . . Combat . | . . . . Robot Hacks Applied . | . . . . Relay Couplers Released . | . . . . Fabnet Peak Effective % . | . . . . Robots Rewired . | . . . . Allies Hacked . | . . . . Hacks Repelled . | . . . . Allies | -11 -10 -9 -9 -------- Run | Yrd Mat Mat Min Total Allies . | . . . . Largest Group . | . . . . Highest-Rated Group . | . . . . Highest-Rated Ally . | . . . . Total Orders . | . . . . Ally Attacks . | . . . . Total Damage . | . . . . Kills . | . . . . Allies Corrupted . | . . . . Allies Melted . | . . . . Intel | -11 -10 -9 -9 ------- Run | Yrd Mat Mat Min Robot Analysis Total . | . . . . Derelict Logs Recovered 1 | . . . 1 Drone Launches . | . . . . Drone Recoveries . | . . . . Exploration | -11 -10 -9 -9 ------------- Run | Yrd Mat Mat Min Turns Passed 949 | 56 386 430 77 Spaces Moved 926 | 47 283 559 37 Core 31 | 4 . 11 16 Treads . | . . . . Legs 21 | . . . 21 Wheels 326 | 43 283 . . Hover 523 | . . 523 . Flight 25 | . . 25 . Fastest Speed 37 | 50 100 37 120 Average Speed 78 | 96 100 62 142 Slowest Speed 190 | 100 100 185 190 Overloaded Moves . | . . . . Propulsion Burnouts . | . . . . Robots Hopped 1 | . . 1 . Cave-ins Triggered . | . . . . Exploration Rate (%) 18 | 3 30 37 5 Regions Visited 3 Branch Regions 1 Pre-discovered Areas 1 | . . . 1 Known Exits Taken . | . . . . Unknown Exits Taken 3 | 1 1 1 . Scrap Searched . | . . . . Spaces Dug 11 | . . 11 . Terrain Destroyed 12 | . . 11 1 Melee 11 | . . 11 . Projectile 1 | . . . 1 AOE . | . . . . Terrain Rammed . | . . . . Walls Destroyed . | . . . . Machines Disabled . | . . . . Actions | -11 -10 -9 -9 --------- Run | Yrd Mat Mat Min Total 1070 | 54 351 611 54 Wait 36 | . 35 . 1 Move 921 | 46 282 556 37 Hop 1 | . . 1 . Pick Up 18 | 2 10 6 . Fast Attach 21 | 6 3 6 6 Attach 12 | . 1 8 3 Detach 7 | . . 4 3 Swap 3 | . . 3 . Drop 12 | . 3 9 . Fire 18 | . 17 . 1 Melee 18 | . . 15 3 Ram 3 | . . 3 . Kick . | . . . . Crush . | . . . . Escape Stasis . | . . . . Rewire . | . . . . Trap . | . . . . Miscellaneous . | . . . . Route ------- -11/Scrapyard -10/Materials -9/Materials (discovered 2 exits: *Min x2) -9/Mines History --------- Turn | Location | Event 11 | -11/Scrapyard | Discovered new exit (range 16) 57 | -11/Scrapyard | Entered Materials 318 | -10/Materials | Build established: Mutant 422 | -10/Materials | Discovered new exit (range 8) 443 | -10/Materials | Entered another Materials area 443 | -9/Materials | Evolved 2 slots: Propulsion x2 700 | -9/Materials | Discovered new exit (range 15) 841 | -9/Materials | Core integrity fell below 50% 862 | -9/Materials | Core integrity fell below 20% 867 | -9/Materials | Discovered new exit (range 8) 873 | -9/Materials | Entered Mines 885 | -9/Mines | Learned location of Storage (-7) 890 | -9/Mines | Met a Derelict shopkeep closing up shop 901 | -9/Mines | Lost 10 parts (2p5n2u1w) 950 | -9/Mines | Destroyed by G-47 Trooper with Particle Gun Last Messages --------------- Connecting with SHOP.Sys... Current location identified: Mines >>Open Door Sealed Doors opened. GO-KDM(g): "Sorry, the Unaware have moved into these parts and I'm closing up shop. No more sales from me!" ALERT: Derelict activity detected in mines. Dispatching investigation squad. GO-KDM(g): "You've got to be kidding me! I'm outta here..." Acquired Imp. Salvage Targeting Computer. Acquired Imp. Carbon-fiber Leg. Acquired Arc Projector. Acquired Hvy. Ion Cannon. Acquired Shock Absorption System. Discarded Imp. Salvage Targeting Computer. Acquired Great Axe. Shock Absorption System destroyed. G-34 Mercenary Ion Engine severed. Map ----- +----------------------------------------------------+ | ??????????????????????????????????? | | ??????????????????????????????????? | | ??????????????????????????????????? | | ??????????????????????????????????? | | ??????????????????????????????????? | | ??????????????????????????????????? | | ??????????????????????????????????? | | ??????????????????????????????????? | | ??????????????????????????????????? | | ??????????????????????????????????? | | ?????######???????????????????????? | | ????##""""##??##?? ???????????????? | | ????#" "#??????????????????????? | | ????#" "#??#???????????????????? | | ????## ##??????????????????????? | | ????### ###????????? ???????????? | | #???# X #??????????????????????? | | ????# ##??#??????????????????? | | ????# #?????????????????????? | | ????# #?????????????????????? | | ????# #?????????????????????? | | ????# #?????????????????????? | | ????# #?????????????????????? | | ??#?# gg #?????????????????????? | | ??#?# #?????????????????????? | | ??#?# g*@ #?????????????????????? | | ????#### ;###?????????????????????? | | ??#????# #????????????????????????? | | ???????# ? ????? ????????????????? | | ???????###????????????????????????? | | ??????????????? ??????????????????? | | ??????????????????????????????????? | | ??????????????????????????????????? | | ??????????????????????????????????? | | ??????????????????????????????????? | | ??????????????????????????????????? | | ?????#?#??????????????????????????? | | ??????????????????????????????????? | | ??????????????????????????????????? | | ??????????????????????????????????? | | ??????????????????????????????????? | | ??????????????????????????????????? | | ??????????????????????????????????? | | ??????????????????????????????????? | | ??????????????????????????????????? | | ??????????????????????????????????? | | ??????????????????????????????????? | | ??????????????????????????????????? | | ??????????????????????????????????? | | ??????????????????????????????????? | +----------------------------------------------------+ Best States ------------- Heat Dissipation 28 Energy Generation 14 Energy Capacity 280 Matter Stores 300 Matter Capacity 300 Sight Range 16 Robot Scan Range 14 Terrain Scan Range 14 Terrain Scan Density 10 ECM Strength 1 Resistance: EX 25 Evasion (%) 62 Salvage Targeting 2 Item Schematics ----------------- None Robot Schematics ------------------ None Fabricated ------------ Nothing Alien Tech Used ----------------- None Achievements -------------- Fist Fight Part-time Excavator Challenges ------------ None Game ------ Seed ImprovedCentriumExoskeleton Manual? 0 Play Time 00:16:46 Cumulative 6.1 hours Start 2024.04.18 @ 18:34:30 End 2024.04.18 @ 18:49:48 Sessions 1 Manual Loads 0 Difficulty Rogue Special Mode None Game No. 14 Rogue 14 Adventurer 0 Explorer 0 Win Type - Total 0 Types 0/0/0/0/0/0/0/0/0 Lore% 4 Gallery% 14 Achievement% 11 Wizard Run 0 Options --------- Layout 1 ASCII 0 Keyboard 1 Movement Arrows Keybinds 0 Fullscreen 1 Font 24/Smallcaps Map View 50x35 Zoom Use 0% Tactical HUD 0 Map Filters NONE Filters NONE Steam 1 RUN: 86280f94-02e3-481d-be55-3a7ee57f1a62